Cogmind - Beta 12 @@@ ROGUE MODE // 2023.04.12 @ 20:28:19 Player: Michael Result: Escaped! Performance ------------- Evolutions (9) 4500 Regions Visited (28) 5600 Robots Destroyed (430) 2150 Value Destroyed (15375) 15375 Prototype IDs (23) 460 Alien Tech Used (0) 0 Bonus (8341) 8341 TOTAL SCORE: 36426 Bonus ------- High Alert Combat Kills 3343 Follower Combat Kills 438 Entered Garrisons 800 Used RIF Installer 1500 Met Zhirov 300 Win 3000 Friendly Fire -1040 Cogmind --------- Core Integrity 1265/1600 Matter 290/300 Energy 96/100 System Corruption 8% Temperature Cool (1) Movement Flying (45) Location To Epsilon Eridani Parts ------- > --- POWER (2) -------- (None) > --- PROPULSION (7) --- Impulse Thruster Array > --- UTILITY (13) ----- Advanced Coolant Injector Medium Storage Unit Advanced Visual Processing Unit Enhanced Optical Array Advanced System Shield > --- WEAPON (3) ------- (None) > --- INVENTORY (10) --- Huge Storage Unit Advanced Sensor Array Matter Neutralizer Enhanced Nova Cannon Advanced Remote Datajack Peak State ------------ > --- POWER ------------ Antimatter Reactor > --- PROPULSION ------- Improved Heavy Siege Treads Wheel Armored Wheel Armored Wheel Centrium Wheel > --- UTILITY ---------- Experimental Heat Sink Huge Storage Unit Enhanced Optical Array Advanced Signal Interpreter Advanced Transmission Jammer Improved Medium Armor Plating Advanced System Shield Relay Coupler [NC] Relay Coupler [Sentry] Improved Recalibrator > --- WEAPON ----------- Matter Neutralizer KE Penetrator KE Penetrator > --- INVENTORY -------- Medium Treads Armored Medium Treads Medium Storage Unit Huge Storage Unit High-capacity Matter Pod Enhanced Optical Array Enhanced Optical Array Advanced Sensor Array Improved Core Shielding Hacking Suite KE Penetrator KE Penetrator Railgun Mini Assault Cannon Tri-rail Accelerator Tri-rail Accelerator Improved Remote Datajack Advanced Remote Datajack Katana Katana Makeshift Axe Makeshift Sword [Rating: 111] Favorites ----------- Power Micro Nuclear Core Engine Ion Engine Power Core Micro Nuclear Core Reactor Antimatter Reactor Propulsion Wheel Treads Medium Treads Leg Aluminum Leg Wheel Wheel Flight Unit Impulse Thruster Array Utility Huge Storage Unit Device Advanced Sensor Array Storage Huge Storage Unit Processor Advanced Signal Interpreter Hackware Relay Coupler [NC] Protection Weapon Shielding Weapon Katana Energy Gun Enhanced Quantum Rifle Energy Cannon Plasma Cannon Ballistic Gun Heavy Assault Rifle Ballistic Cannon Mini Assault Cannon Launcher Precision Grenade Launcher Special Weapon Remote Datajack Slashing Weapon Katana Build | -11 -10 -10 -10 -9 -8 -8 -8 -7 -7 -7 -7 -7 -6 -5 -5 -5 -5 -5 -5 -4 -4 -4 -4 -4 -3 -3 -2 -1 ------- Run | Jun Mat Min Exi Min Mat Gar Mat Fac Gar Fac Gar Fac Fac Fac Gar Fac Upp Upp War Pro Fac Upp Upp Zhi Pro Res Res Acc Slots Evolved 18 | . . . . . 4 . . 2 . . . . 2 2 . . . . . . 2 . . . . 2 2 2 Power 1 | . . . . . . . . . . . . . . . . . . . . . 1 . . . . . . . Propulsion 5 | . . . . . 2 . . . . . . . 1 1 . . . . . . . . . . . . . 1 Utility 11 | . . . . . 1 . . 2 . . . . 1 1 . . . . . . 1 . . . . 2 2 1 Weapon 1 | . . . . . 1 . . . . . . . . . . . . . . . . . . . . . . . Parts Attached 854 | 7 17 2 1 2 31 22 40 30 27 173 15 17 185 50 39 38 5 11 1 11 14 14 8 3 13 62 6 10 Power 44 | 1 1 . . . 5 1 4 3 4 6 1 . 3 4 2 1 . . . 2 2 . . . 1 2 1 . Engine 10 | 1 1 . . . 2 . 1 . 4 1 . . . . . . . . . . . . . . . . . . Core 28 | . . . . . 3 1 3 3 . 5 1 . 3 4 1 1 . . . 2 1 . . . . . . . Reactor 6 | . . . . . . . . . . . . . . . 1 . . . . . 1 . . . 1 2 1 . Propulsion 181 | 2 5 2 . . 9 6 14 3 4 24 1 1 33 19 20 4 . 1 . 2 4 6 . . 3 15 2 1 Treads 36 | . . 1 . . 4 1 4 . 4 7 . . 4 1 2 1 . . . . . 1 . . 1 5 . . Leg 5 | 2 3 . . . . . . . . . . . . . . . . . . . . . . . . . . . Wheel 136 | . 2 1 . . 5 5 10 3 . 17 1 1 29 18 18 3 . 1 . 2 4 5 . . 2 9 . . Hover . | . . . . . . . . . . . . . . . . . . . . . . . . . . . . . Flight 4 | . . . . . . . . . . . . . . . . . . . . . . . . . . 1 2 1 Utility 270 | 1 4 . 1 1 4 2 6 5 6 52 4 5 73 20 7 17 4 10 1 6 6 5 5 . 3 15 2 5 Device 182 | . . . . . 2 . . 1 1 33 2 2 59 17 4 14 4 9 1 6 4 5 5 . 2 7 2 2 Storage 9 | 1 2 . 1 . . . . . . 1 . . . . . . . . . . . . . . . 2 . 2 Processor 11 | . 2 . . 1 . . . . . 1 1 1 3 . . . . 1 . . . . . . . . . 1 Hackware 25 | . . . . . . . 2 2 3 4 . 1 3 2 1 3 . . . . 2 . . . . 2 . . Protection 43 | . . . . . 2 2 4 2 2 13 1 1 8 1 2 . . . . . . . . . 1 4 . . Artifact . | . . . . . . . . . . . . . . . . . . . . . . . . . . . . . Weapon 359 | 3 7 . . 1 13 13 16 19 13 91 9 11 76 7 10 16 1 . . 1 2 3 3 3 6 30 1 4 Energy Gun 1 | . . . . . . . . . . . . . . . . . . . . . . . . . . . . 1 Energy Cannon 39 | . . . . . . . . . . 21 2 . 2 1 . 4 1 . . . . 1 . 1 1 1 1 3 Ballistic Gun 82 | 3 6 . . 1 9 8 8 5 1 8 . 2 8 1 4 . . . . . . . 2 2 2 12 . . Ballistic Cannon 45 | . 1 . . . . . . . . 10 3 3 18 2 3 3 . . . . . 1 . . . 1 . . Launcher 32 | . . . . . 3 3 2 2 2 10 3 . 4 . . . . . . . . . . . . 3 . . Special Weapon 48 | . . . . . . . 2 6 5 13 . 2 9 1 1 4 . . . . 1 . . . . 4 . . Impact Weapon . | . . . . . . . . . . . . . . . . . . . . . . . . . . . . . Slashing Weapon 112 | . . . . . 1 2 4 6 5 29 1 4 35 2 2 5 . . . 1 1 1 1 . 3 9 . . Piercing Weapon . | . . . . . . . . . . . . . . . . . . . . . . . . . . . . . Special Melee Weapon . | . . . . . . . . . . . . . . . . . . . . . . . . . . . . . Unidentified Prototypes 2 | . . . . . 1 . . . . . . . . . 1 . . . . . . . . . . . . . Parts Lost 154 | . 1 . . . 2 7 9 6 8 15 3 1 23 7 15 . . 3 . 4 3 5 1 . 4 27 . 10 Power 18 | . 1 . . . . . 1 3 2 1 1 . 2 . . . . . . 1 . . . . 2 3 . 1 Propulsion 65 | . . . . . 1 3 3 1 1 8 1 1 11 6 7 . . 1 . 1 2 3 . . 2 9 . 4 Utility 37 | . . . . . 1 1 1 . 2 3 1 . 7 1 4 . . 2 . 1 1 1 1 . . 7 . 3 Weapon 34 | . . . . . . 3 4 2 3 3 . . 3 . 4 . . . . 1 . 1 . . . 8 . 2 Highest Loss Streak 21 | . 1 . . . 2 4 4 4 3 7 1 1 8 5 4 . . 3 . 4 2 5 1 . 4 21 . 7 To Critical Strikes 1 | . . . . . . . . . . . . . . . . . . . . . . . . . . 1 . . Average Slot Usage (%) 92 | . 99 100 100 100 99 96 97 96 87 95 91 92 95 94 81 96 94 93 94 93 91 93 94 84 95 80 44 48 Engine 1 | . 13 14 14 14 2 . 1 . 5 1 . . . . . . . . . . . . . . . . . . Core 4 | . . . . . 6 9 6 6 1 5 7 7 5 5 4 3 5 5 5 5 8 5 5 5 3 . . . Treads 5 | . . 5 . . 8 9 9 7 11 7 7 7 5 1 . 2 5 5 5 5 5 6 10 10 9 4 4 3 Leg 1 | . 23 . . . . . . . . . . . . . . . . . . . . . . . . . . . Wheel 20 | . 4 22 28 28 26 23 25 20 9 18 14 15 23 28 17 29 29 28 29 28 24 23 21 21 19 15 . . Device 7 | . . . . . . . . 3 . 8 7 8 7 12 8 8 5 8 11 14 17 14 15 15 13 12 6 3 Storage 6 | . 14 14 14 14 9 9 9 7 7 7 7 7 6 5 5 5 5 5 5 5 5 5 5 5 5 3 . 3 Processor 9 | . 13 14 14 14 9 9 7 . . 1 . 7 15 11 11 11 11 13 17 12 10 10 10 10 10 9 8 9 Hackware 8 | . . . . . . . 2 19 21 16 7 12 7 5 5 13 17 11 5 5 6 10 10 10 10 13 8 7 Protection 2 | . . . . . 8 9 7 7 6 2 13 . . 2 5 . . . . . . . . . . 1 . . Energy Cannon 2 | . . . . . . . . . . 8 6 5 . 3 . 4 2 5 5 1 . . . . 4 1 3 3 Ballistic Gun 6 | . 26 28 28 28 26 25 18 9 9 . . 1 . . 5 . . . . . . . 1 . 10 2 . . Ballistic Cannon 2 | . 1 . . . . . . . . 1 12 3 6 1 6 1 5 5 5 5 5 5 5 . . . . . Slashing Weapon 6 | . . . . . . 1 7 11 11 8 2 11 11 10 4 8 . . . 3 4 4 3 . . 7 . . Naked Turns . | . . . . . . . . . . . . . . . . . . . . . . . . . . . . . Heaviest Build 129 | 13 29 29 89 89 97 102 103 98 107 127 112 104 110 104 105 111 112 113 112 112 124 129 125 125 124 124 29 125 Greatest Support 150 | 20 20 20 20 20 30 32 32 32 150 150 38 38 50 60 60 72 60 60 60 60 64 60 50 50 50 75 38 45 Greatest Overweight (x) 10 | . 1 2 4 4 4 4 4 9 5 10 3 2 4 5 10 1 1 2 1 2 2 4 2 2 4 5 1 7 Average Overweight (x) 1 | . . 1 3 4 3 3 3 3 1 2 2 2 1 1 2 1 1 1 1 1 1 2 2 2 2 1 . . Largest Inventory Capacity 25 | 8 15 15 25 25 25 25 25 25 25 25 25 25 25 25 25 25 25 25 25 25 25 25 25 25 25 25 5 25 Average Capacity 23 | 6 9 15 24 25 25 25 25 25 25 25 25 25 25 25 25 25 25 25 25 25 25 25 25 25 25 24 5 10 Most Carried 25 | 4 15 15 20 25 25 25 25 25 25 25 25 25 25 25 25 25 25 25 24 25 25 25 25 25 25 25 5 10 Average Carried 22 | 3 8 15 18 21 24 24 24 22 23 23 24 24 24 23 23 24 24 24 24 22 23 22 20 24 24 23 3 8 Final Capacity 25 | 8 15 15 25 25 25 25 25 25 25 25 25 25 25 25 25 25 25 25 25 25 25 25 25 25 25 5 5 10 Final Carried 25 | 4 15 15 20 25 25 23 24 25 24 25 25 23 17 25 24 25 25 24 24 21 25 20 25 25 24 5 5 5 Class Distribution -------------------- 25% | Bothacker-Mutant 10% | Bothacker-Assassin 10% | Mutant 9% | Scavenger-Assassin 7% | Scavenger-Mutant 5% | Scavenger-Gunner 5% | Assassin 4% | Gunner 4% | Bothacker-Gunner 3% | Bothacker-Tank 3% | Skirmisher Dominant Class ---------------- Mutant | -10/Materials Mutant | -10/Mines Mutant | -10/Exiles Mutant | -9/Mines Scavenger-Gunner | -8/Materials Scavenger-Gunner | -8/Garrison Bothacker-Mutant | -8/Materials Bothacker-Mutant | -7/Factory Bothacker-Mutant | -7/Garrison Bothacker-Mutant | -7/Factory Bothacker-Tank | -7/Garrison Bothacker-Mutant | -7/Factory Bothacker-Assassin | -6/Factory Scavenger-Assassin | -5/Factory Bothacker-Tank | -5/Garrison Bothacker-Assassin | -5/Factory Bothacker-Mutant | -5/Upper Caves Bothacker-Skirmisher | -5/Upper Caves Scavenger-Skirmisher | -5/Warlord Scavenger-Assassin | -4/Proximity Caves Scavenger-Assassin | -4/Factory Assassin | -4/Upper Caves Assassin | -4/Upper Caves Mutant | -4/Zhirov Skirmisher | -3/Proximity Caves Mutant | -3/Research Hacker-Scout | -2/Research Hacker-Scout | -1/Access Resources | -11 -10 -10 -10 -9 -8 -8 -8 -7 -7 -7 -7 -7 -6 -5 -5 -5 -5 -5 -5 -4 -4 -4 -4 -4 -3 -3 -2 -1 ----------- Run | Jun Mat Min Exi Min Mat Gar Mat Fac Gar Fac Gar Fac Fac Fac Gar Fac Upp Upp War Pro Fac Upp Upp Zhi Pro Res Res Acc Matter Collected 16726 | 218 498 122 40 44 675 567 1293 400 420 2918 502 476 3057 993 1360 499 166 201 . 206 173 165 305 . 324 958 . 146 Remotely 2024 | . . . . . . . . . . . . . 689 . . . . 99 . 172 . 165 260 . . 639 . . Salvage Created 15725 | . 416 23 . 20 954 775 1362 443 619 2900 485 300 2345 867 1097 622 149 87 . 146 142 . 183 . 396 1354 . 40 Parts 845 | . 31 3 . 2 70 53 76 27 34 147 27 9 132 55 42 20 1 8 . 19 9 . 8 . 17 53 . 2 Haulers Intercepted 13 | . 2 . . . 3 . 4 . . 3 . . 1 . . . . . . . . . . . . . . . Recyclers Shooed 9 | . 1 . . . . . 1 . . 4 . . 2 . . . . . . . . . . . . 1 . . Parts Field Recycled . | . . . . . . . . . . . . . . . . . . . . . . . . . . . . . Retrieved Matter . | . . . . . . . . . . . . . . . . . . . . . . . . . . . . . Parts Self-Destructed 57 | . . . . . . . . . . . . . . . . . 2 7 . 19 . . 10 . 19 . . . Prevented 3 | . . . . . . . . . . . . . . . . . . 3 . . . . . . . . . . Kills | -11 -10 -10 -10 -9 -8 -8 -8 -7 -7 -7 -7 -7 -6 -5 -5 -5 -5 -5 -5 -4 -4 -4 -4 -4 -3 -3 -2 -1 ------- Run | Jun Mat Min Exi Min Mat Gar Mat Fac Gar Fac Gar Fac Fac Fac Gar Fac Upp Upp War Pro Fac Upp Upp Zhi Pro Res Res Acc Combat Hostiles Destroyed 279 | . 13 . . 1 17 28 21 7 11 50 13 5 32 7 19 5 3 4 . 9 . . 4 . 8 22 . . Melee 19 | . . . . . . . 1 . 3 2 . . 6 4 1 1 . . . . . . . . . 1 . . Guns 85 | . 13 . . 1 14 18 14 3 1 . . . 2 1 8 . . . . . . . 1 . 6 3 . . Cannons 94 | . . . . . . . 1 . . 22 10 4 18 2 10 3 2 4 . 9 . . 3 . 2 4 . . AOE 75 | . . . . . 3 10 5 4 7 24 2 . 6 . . . 1 . . . . . . . . 13 . . Classes Destroyed 21 | . 4 . . . 4 1 6 . 1 1 . . 1 . 1 . . . . . . . . . 1 1 . . Worker 61 | . 2 1 . . . . 6 4 . 11 . . 19 10 . . . . . . 1 . . . . 7 . . Builder 22 | . . . . . 3 . . 1 . 7 . . 6 3 . . . . . . . . . . . 2 . . Tunneler 8 | . . . . . . . 1 1 . 2 . . 3 1 . . . . . . . . . . . . . . Hauler 13 | . 2 . . . 3 . 4 . . 3 . . 1 . . . . . . . . . . . . . . . Recycler 29 | . . . . . . . 1 3 . 11 . 1 5 2 . 3 . . . . 1 . . . . 2 . . Mechanic 5 | . . . . . . . 1 . . 3 . . . . . . . . . . . . . . . 1 . . Operator 4 | . . . . . 3 . . . . . . . . . . . . . . . 1 . . . . . . . Drone 1 | . . . . . . . . . . . . . . . . . . . . . . . . . 1 . . . Watcher 7 | . . . . . . . . . . . . . 2 1 . . . . . . . . . . . 3 . 1 Swarmer 75 | . 9 . . 1 3 10 2 5 4 5 . . 6 . 5 . . 3 . 9 . . 3 . 3 7 . . Cutter 6 | . . . . . . . . . 3 . . . 3 . . . . . . . . . . . . . . . Grunt 101 | . 4 . . . 7 13 10 3 1 25 5 4 10 . 10 2 3 . . . . . . . 4 . . . Brawler 9 | . . . . . . . 2 . 1 1 3 . 2 . . . . . . . . . . . . . . . Duelist 6 | . . . . . . . 3 . . 2 1 . . . . . . . . . . . . . . . . . Protector 1 | . . . . . . . . . . 1 . . . . . . . . . . . . . . . . . . Sentry 25 | . . . . . 6 2 2 . 1 8 1 1 2 . . . . . . . . . . . . 2 . . Specialist 6 | . . . . . 1 . . . . 2 . . . . . . . . . . . . . . . 3 . . Hunter 10 | . . . . . . . 2 . 1 2 . . . . . 1 . . . . . . . . . 4 . . Programmer 41 | . . . . . . 3 . . . 6 3 1 9 7 3 2 . 1 . . . . 1 . . 5 . . Behemoth 1 | . . . . . . . . . . . . . . . 1 . . . . . . . . . . . . . Executioner 1 | . . . . . . . . . . . . . . . . . . . . . . . . . . 1 . . Best Kill Streak 22 | . 3 1 . 1 4 8 7 7 5 11 4 3 7 4 6 2 3 3 . 9 1 . 3 . 4 22 . 1 Combat Bots Only 16 | . 3 . . 1 4 8 5 3 5 7 4 3 7 3 6 2 3 3 . 9 . . 3 . 4 16 . . Max Kills in Single Turn 5 | . 1 1 . 1 3 3 5 2 2 4 1 1 3 1 1 1 1 1 . 1 1 . 1 . 1 5 . 1 Gunslinging 1 | . . . . . . . 1 . . . . . . . . . . . . . . . . . . . . . Exploded 4 | . . . . . 3 3 3 2 2 3 1 . 3 . . . 1 . . . . . . . . 4 . . Melee 1 | . . . . . . . 1 . 1 1 . . 1 1 1 1 . . . . . . . . . 1 . . Uniques/NPCs Destroyed . | . . . . . . . . . . . . . . . . . . . . . . . . . . . . . Combat | -11 -10 -10 -10 -9 -8 -8 -8 -7 -7 -7 -7 -7 -6 -5 -5 -5 -5 -5 -5 -4 -4 -4 -4 -4 -3 -3 -2 -1 -------- Run | Jun Mat Min Exi Min Mat Gar Mat Fac Gar Fac Gar Fac Fac Fac Gar Fac Upp Upp War Pro Fac Upp Upp Zhi Pro Res Res Acc Damage Taken 26367 | . 356 112 . 10 836 1437 1386 912 1145 3442 454 408 3485 871 2160 357 77 279 . 636 331 532 266 . 661 4626 . 1588 Core 4121 | . 53 52 . 10 246 150 144 98 86 392 45 56 555 102 365 36 20 13 . 81 45 129 12 . 60 1036 . 335 Absorbed by Shields 94 | . . . . . . 28 . . . . 26 . . . 40 . . . . . . . . . . . . . Redirected to Shielding 675 | . . . . . 59 44 192 . 18 18 11 . 78 58 132 . . . . . . . . . . 65 . . Regen/Repaired (Parts) 592 | . . . . . 58 . 176 . . 88 . . 40 185 . 45 . . . . . . . . . . . . Core Remaining (%) 50 | 100 . . . 54 . . 1 . . . . 3 34 . . . . . . 38 . . . . 78 20 100 79 Volleys Fired 778 | . 62 5 . 1 56 49 57 22 18 132 31 16 86 18 59 30 7 9 . 17 10 8 6 . 19 35 6 19 Largest 3 | . 2 2 . 2 3 3 3 3 2 3 3 3 3 3 3 2 2 2 . 2 1 2 2 . 3 3 1 1 Hottest 240 | . 55 43 . 43 69 85 100 71 100 240 176 151 177 126 129 162 141 141 . 141 60 158 93 . 171 115 105 120 Shots Fired 1719 | . 124 10 . 2 162 147 163 36 20 273 78 42 178 44 167 35 12 18 . 20 11 15 14 . 55 68 6 19 Gun 878 | . 123 10 . 2 159 137 159 23 6 30 . 13 29 13 79 . . . . . . . 7 . 42 46 . . Cannon 692 | . 1 . . . . . . . . 193 73 26 132 27 87 25 12 18 . 20 6 15 7 . 13 12 6 19 Launcher 70 | . . . . . 3 10 2 5 4 30 5 . 5 . . . . . . . . . . . . 6 . . Special 79 | . . . . . . . 2 8 10 20 . 3 12 4 1 10 . . . . 5 . . . . 4 . . Kinetic 1322 | . 124 10 . 2 159 137 159 23 6 86 49 36 153 40 166 15 7 9 . 17 6 8 14 . 42 54 . . Thermal 223 | . . . . . . . 1 . 1 137 24 3 8 . . . . . . . . 7 . . 13 4 6 19 Explosive 70 | . . . . . 3 10 2 5 4 30 5 . 5 . . . . . . . . . . . . 6 . . Electromagnetic 27 | . . . . . . . . . . . . . . . . 10 5 9 . 3 . . . . . . . . Robot Hit Streak 28 | . 7 4 . 1 19 15 18 13 9 15 11 10 28 4 10 7 13 4 . 2 4 26 7 . 5 11 . 3 Robot Miss Streak 8 | . 4 4 . 1 2 3 2 5 3 3 3 2 4 3 3 5 3 3 . 8 1 1 3 . 3 5 . . Penetration Max 1 | . . . . . . . . . . . . . . . 1 . . . . . . . . . . 1 . . Secondary Targets 8 | . . . . . 1 1 4 2 . . . . . . . . . . . . . . . . . . . . Max Gunslinging Chain 1 | . . . . . 1 1 1 1 . . . . . . . . . . . . . . . . . . . . Shots Hit Robots 1330 | . 72 4 . 1 117 92 141 30 37 206 42 24 173 56 131 31 10 15 . 13 10 13 9 . 30 71 . 2 Core Hits 688 | . 31 2 . 1 56 53 61 21 26 125 23 11 86 20 47 10 5 4 . 9 3 3 7 . 17 66 . 1 Critical Kills 9 | . . . . . . . . . . 2 1 1 . . 2 . . . . . . . 1 . . 1 . 1 Critical Parts Destroyed 6 | . . . . . . . . . . . . . . . 3 . . . . . . . . . 1 2 . . Critical Strikes 41 | . . . . . . . 1 . 1 6 3 4 5 2 9 2 . . . . . 1 1 . 1 4 . 1 Meltdown 6 | . . . . . . . . . . 2 1 1 . . . . . . . . . . . . . 1 . 1 Destroy 9 | . . . . . . . . . . . . . . . 5 . . . . . . . 1 . 1 2 . . Blast 19 | . . . . . . . . . . 4 2 3 4 1 2 1 . . . . . 1 . . . 1 . . Sever 7 | . . . . . . . 1 . 1 . . . 1 1 2 1 . . . . . . . . . . . . Melee Attacks 528 | . . . . . 2 1 18 9 29 84 1 25 148 69 28 35 . . . . 23 1 1 . . 54 . . Impact . | . . . . . . . . . . . . . . . . . . . . . . . . . . . . . Slashing 528 | . . . . . 2 1 18 9 29 84 1 25 148 69 28 35 . . . . 23 1 1 . . 54 . . Piercing . | . . . . . . . . . . . . . . . . . . . . . . . . . . . . . Sneak Attacks 123 | . . . . . 1 . 5 8 3 25 . . 38 22 . 5 . . . . 3 . . . . 13 . . Combat Hostiles 8 | . . . . . . . . . 3 3 . . 2 . . . . . . . . . . . . . . . Follow-up Attacks 30 | . . . . . . . 2 2 6 1 . . 8 4 2 2 . . . . . . . . . 3 . . Damage Inflicted 48477 | . 673 43 . 14 1754 2658 2917 1532 1843 9430 1528 562 7136 3032 4253 1247 666 524 . 462 355 852 472 . 765 5685 . 74 Guns 9728 | . 656 43 . 14 1411 1373 1763 221 101 287 . 96 302 189 1315 . . . . . . . 84 . 665 1208 . . Cannons 13817 | . 17 . . . . . . . . 3605 1209 466 2344 584 1642 665 395 524 . 462 110 852 307 . 100 461 . 74 Explosions 11131 | . . . . . 285 1285 510 776 475 3907 319 . 663 . . . 271 . . . . . . . . 2640 . . Melee 13771 | . . . . . 58 . 631 535 1267 1631 . . 3810 2259 1296 582 . . . . 245 . 81 . . 1376 . . Ramming 17 | . . . . . . . . . . . . . 17 . . . . . . . . . . . . . . . Kinetic 19446 | . 673 43 . 14 1411 1373 1763 221 101 1368 814 488 2463 773 2957 486 251 401 . 462 110 620 391 . 665 1598 . . Thermal 4026 | . . . . . . . 13 89 . 2524 395 74 183 . . . 271 . . . . 232 . . 100 71 . 74 Explosive 10771 | . . . . . 285 1285 510 687 475 3907 319 . 663 . . . . . . . . . . . . 2640 . . Electromagnetic 446 | . . . . . . . . . . . . . . . . 179 144 123 . . . . . . . . . . Impact . | . . . . . . . . . . . . . . . . . . . . . . . . . . . . . Slashing 13771 | . . . . . 58 . 631 535 1267 1631 . . 3810 2259 1296 582 . . . . 245 . 81 . . 1376 . . Piercing . | . . . . . . . . . . . . . . . . . . . . . . . . . . . . . Highest Corruption 24 | . . . . . . 4 4 . . 1 2 1 11 4 4 4 4 5 5 . 4 4 4 4 4 24 . 8 Average Corruption 3 | . . . . . . 3 4 . . 1 1 1 4 2 3 1 4 4 5 . 3 4 4 4 4 10 . 2 Corruption Purged 19 | . . . . . . . . . . 2 1 1 6 6 . 3 . . . . . . . . . . . . Corruption Blocked 8 | . . . . . . . . . . . . . 8 . . . . . . . . . . . . . . . Effects 187 | . . . . . . 9 27 . . 1 5 . 41 6 7 5 6 12 . . 6 15 16 2 15 12 . 2 Message Errors 40 | . . . . . . 1 6 . . . . . 8 2 1 1 . 5 . . 1 5 1 1 4 4 . . Matter Fused 39 | . . . . . . 2 6 . . . 1 . 10 1 1 . 1 2 . . 2 4 2 1 4 2 . . Heat Flow Errors 23 | . . . . . . 1 2 . . . 1 . 5 1 . 2 2 1 . . 1 . 3 . 2 1 . 1 Energy Discharges 18 | . . . . . . 1 1 . . 1 . . 4 2 1 . 1 1 . . 1 2 2 . 1 . . . Parts Rejected 3 | . . . . . . . . . . . . . 2 . . . . . . . . . . . 1 . . . Parts Fused 1 | . . . . . . . . . . . . . . . . . . . . . . 1 . . . . . . Data Loss (minor) 24 | . . . . . . 2 6 . . . . . 3 . 3 . 2 1 . . . . 5 . 1 . . 1 Data Loss (major) 15 | . . . . . . . 2 . . . 1 . 3 . 1 . . 2 . . . 2 1 . . 3 . . Misfires 12 | . . . . . . 2 . . . . . . 3 . . 1 . . . . 1 . 2 . 2 1 . . Alerts 6 | . . . . . . . 2 . . . 1 . 1 . . 1 . . . . . 1 . . . . . . Misdirections 1 | . . . . . . . . . . . . . . . . . . . . . . . . . . 1 . . Weapon Failures 5 | . . . . . . . 2 . . . 1 . 2 . . . . . . . . . . . . . . . Overload Shots . | . . . . . . . . . . . . . . . . . . . . . . . . . . . . . Overflow Damage 3205 | . . . . . 12 61 96 173 9 532 1 . 887 597 103 108 19 38 . 4 87 . 9 . . 469 . . Projectiles 377 | . . . . . . . . . . 96 . . 127 6 36 9 5 38 . 4 27 . 9 . . 20 . . Explosions 451 | . . . . . 12 61 . 92 9 57 1 . 77 . 41 . 14 . . . . . . . . 87 . . Melee 2377 | . . . . . . . 96 81 . 379 . . 683 591 26 99 . . . . 60 . . . . 362 . . Knockbacks 73 | . . . . . . . . . . 7 4 2 25 5 13 4 4 3 . 3 2 . . . . 1 . . Impact . | . . . . . . . . . . . . . . . . . . . . . . . . . . . . . Kinetic 67 | . . . . . . . . . . 7 4 2 20 5 12 4 4 3 . 3 2 . . . . 1 . . Secondary 6 | . . . . . . . . . . . . . 5 . 1 . . . . . . . . . . . . . Self-Inflicted Damage 814 | . . . . . 13 62 . 97 53 93 22 . 323 . 151 . . . . . . . . . . . . . Shots 21 | . . . . . 1 2 . 3 2 4 1 . 7 . 1 . . . . . . . . . . . . . Rammed 1 | . . . . . . . . . . . . . 1 . . . . . . . . . . . . . . . Targets Rammed 1 | . . . . . . . . . . . . . 1 . . . . . . . . . . . . . . . Kicked . | . . . . . . . . . . . . . . . . . . . . . . . . . . . . . Crushed . | . . . . . . . . . . . . . . . . . . . . . . . . . . . . . Highest Temperature 549 | . 14 11 . 2 70 243 226 24 50 312 136 373 549 168 8 198 264 209 . . 138 9 222 . 151 179 24 165 Average Temperature 71 | . 2 3 . 1 18 68 47 11 25 73 28 191 119 79 5 44 125 122 . . 86 9 87 . 19 59 13 44 Received Heat Transfer 4458 | . 48 36 . . 369 459 468 219 93 1017 93 126 775 . 401 108 36 . . . 18 27 . . 129 36 . . Effects 12 | . . . . . . . . . . . . 1 11 . . . . . . . . . . . . . . . Shutdowns 1 | . . . . . . . . . . . . . 1 . . . . . . . . . . . . . . . Energy Bleed 3 | . . . . . . . . . . . . 1 2 . . . . . . . . . . . . . . . Interference 5 | . . . . . . . . . . . . . 5 . . . . . . . . . . . . . . . Short Circuit 1 | . . . . . . . . . . . . . 1 . . . . . . . . . . . . . . . Damage (minor) 2 | . . . . . . . . . . . . . 2 . . . . . . . . . . . . . . . Siege Activations . | . . . . . . . . . . . . . . . . . . . . . . . . . . . . . Robots Corrupted 1 | . . . . . . . . . . . . . . . . 1 . . . . . . . . . . . . Combat Hostiles 1 | . . . . . . . . . . . . . . . . 1 . . . . . . . . . . . . Parts Fried 2 | . . . . . . . . . . . . . . . . 1 . . . . . . . . . 1 . . Impact Corruptions . | . . . . . . . . . . . . . . . . . . . . . . . . . . . . . Robots Melted 6 | . . . . . . . . . . 2 1 1 . . . . . . . . . . . . . 1 . 1 Combat Hostiles 5 | . . . . . . . . . . 2 1 1 . . . . . . . . . . . . . 1 . . Parts Melted 17 | . . . . . . . . . . 14 2 . . . . . . . . . . . . . . 1 . . Heat Transferred 6899 | . . . . . . . 80 150 . 4750 700 150 184 . . . 250 . . . . 350 . . 137 74 . 74 Parts Sabotaged 1 | . . . . . . . . . . . . . . . . . . . . . . . . . . 1 . . Parts Stolen . | . . . . . . . . . . . . . . . . . . . . . . . . . . . . . Parts Stripped . | . . . . . . . . . . . . . . . . . . . . . . . . . . . . . Power Chain Reactions 1 | . . . . . . . . . . . . . . . . . 1 . . . . . . . . . . . Missiles Intercepted . | . . . . . . . . . . . . . . . . . . . . . . . . . . . . . Alert | -11 -10 -10 -10 -9 -8 -8 -8 -7 -7 -7 -7 -7 -6 -5 -5 -5 -5 -5 -5 -4 -4 -4 -4 -4 -3 -3 -2 -1 ------- Run | Jun Mat Min Exi Min Mat Gar Mat Fac Gar Fac Gar Fac Fac Fac Gar Fac Upp Upp War Pro Fac Upp Upp Zhi Pro Res Res Acc Peak Influence 1386 | . 367 102 . 84 305 984 786 657 695 1320 1386 785 880 563 887 514 . . . . 57 . . . . 878 443 374 Initial 924 | . . 47 . . 32 143 479 337 347 346 924 727 346 412 245 465 . . . . . . . . . 640 395 265 Average 465 | . 151 82 . 20 149 638 631 425 559 661 1156 698 383 378 604 417 . . . . 23 . . . . 594 427 312 Maximum Alert Level 4 | . 1 . . . 1 3 3 2 2 4 4 3 3 2 3 2 . . . . . . . . . 3 2 1 Low Security (%) 20 | 100 71 100 . 100 64 7 . . . . . . 25 . . . . . . . 100 . . . . . . 8 Level 1 29 | . 28 . . . 35 24 . 50 9 30 . . 42 68 9 43 . . . . . . . . . 3 4 91 Level 2 30 | . . . . . . 11 61 49 90 32 . 36 19 31 60 56 . . . . . . . . . 84 95 . Level 3 13 | . . . . . . 55 38 . . 10 31 63 13 . 29 . . . . . . . . . . 11 . . Level 4 6 | . . . . . . . . . . 26 68 . . . . . . . . . . . . . . . . . Level 5 . | . . . . . . . . . . . . . . . . . . . . . . . . . . . . . High Security . | . . . . . . . . . . . . . . . . . . . . . . . . . . . . . Max Security . | . . . . . . . . . . . . . . . . . . . . . . . . . . . . . Squads Dispatched 58 | . 2 . . . 3 . 3 2 . 12 . 3 17 5 . 2 . . . . 2 . . . . 4 1 2 Investigation 1 | . 1 . . . . . . . . . . . . . . . . . . . . . . . . . . . Extermination 24 | . . . . . . . . 1 . 5 . 1 8 3 . 1 . . . . 1 . . . . 2 1 1 Reinforcement 22 | . 1 . . . 3 . . . . 4 . 1 6 2 . 1 . . . . 1 . . . . 2 . 1 Assault 11 | . . . . . . . 3 1 . 3 . 1 3 . . . . . . . . . . . . . . . Garrison . | . . . . . . . . . . . . . . . . . . . . . . . . . . . . . Intercept . | . . . . . . . . . . . . . . . . . . . . . . . . . . . . . Searches Triggered 2 | . . . . . . . . . . . . . . . . . . . . . . . . . . 2 . . Construction Impeded 3 | . . . . . . . . . . . . . 1 1 . . . . . . . . . . . 1 . . Haulers Reinforced 2 | . . . . . . . . . . 1 . . . . . 1 . . . . . . . . . . . . Active Scanning Responses . | . . . . . . . . . . . . . . . . . . . . . . . . . . . . . Cargo Convoy Interrupts 2 | . . . . . . . . . . . . . 1 . . . . . . . . . . . . 1 . . Stealth | -11 -10 -10 -10 -9 -8 -8 -8 -7 -7 -7 -7 -7 -6 -5 -5 -5 -5 -5 -5 -4 -4 -4 -4 -4 -3 -3 -2 -1 --------- Run | Jun Mat Min Exi Min Mat Gar Mat Fac Gar Fac Gar Fac Fac Fac Gar Fac Upp Upp War Pro Fac Upp Upp Zhi Pro Res Res Acc Distress Signals 12 | . . . . . 5 . 1 . . 3 . . . . . . . . . . . . . . . 1 1 1 Communications Jammed 75 | . . . . . . . . . . . . . 16 16 . . . . . . . . . . 2 41 . . Distress Signals 73 | . . . . . . . . . . . . . 16 16 . . . . . . . . . . . 41 . . Times Spotted 503 | . 34 4 . 1 28 37 34 17 19 83 13 12 62 17 26 9 4 5 . 9 3 1 6 . 9 50 2 18 Peak Tracking Total 17 | . 6 3 . 1 6 8 6 7 6 8 4 6 7 2 6 2 4 4 . 5 1 1 4 . 5 17 2 13 Tactical Retreats 31 | . 3 1 . . 3 5 1 . 2 1 . 2 3 . 4 . . 1 . . . . . . . 2 1 2 Traps | -11 -10 -10 -10 -9 -8 -8 -8 -7 -7 -7 -7 -7 -6 -5 -5 -5 -5 -5 -5 -4 -4 -4 -4 -4 -3 -3 -2 -1 ------- Run | Jun Mat Min Exi Min Mat Gar Mat Fac Gar Fac Gar Fac Fac Fac Gar Fac Upp Upp War Pro Fac Upp Upp Zhi Pro Res Res Acc Traps Triggered 34 | . 1 . . . . 8 . . . 5 6 . 3 2 4 . . . . . 4 . . . . . 1 . Indirectly . | . . . . . . . . . . . . . . . . . . . . . . . . . . . . . Trap Hack Attempts . | . . . . . . . . . . . . . . . . . . . . . . . . . . . . . Triggered . | . . . . . . . . . . . . . . . . . . . . . . . . . . . . . Disarmed . | . . . . . . . . . . . . . . . . . . . . . . . . . . . . . Reprogrammed . | . . . . . . . . . . . . . . . . . . . . . . . . . . . . . Reused . | . . . . . . . . . . . . . . . . . . . . . . . . . . . . . Traps Extracted . | . . . . . . . . . . . . . . . . . . . . . . . . . . . . . Installed . | . . . . . . . . . . . . . . . . . . . . . . . . . . . . . Triggered 4 | . . . . . . . . . . . . . 1 . . . . 3 . . . . . . . . . . Exploded 3 | . . . . . . . . 1 2 . . . . . . . . . . . . . . . . . . . Machines | -11 -10 -10 -10 -9 -8 -8 -8 -7 -7 -7 -7 -7 -6 -5 -5 -5 -5 -5 -5 -4 -4 -4 -4 -4 -3 -3 -2 -1 ---------- Run | Jun Mat Min Exi Min Mat Gar Mat Fac Gar Fac Gar Fac Fac Fac Gar Fac Upp Upp War Pro Fac Upp Upp Zhi Pro Res Res Acc Machines Disabled 34 | . . . . . . 2 1 8 2 2 6 . 6 . 6 . . . . . . . . . . . . 1 Max in Single Turn 6 | . . . . . . 1 1 6 1 1 1 . 2 . 2 . . . . . . . . . . . . 1 Garrison Access 1 | . . . . . . . . . . . . . . . . . . . . . 1 . . . . . . . Garrison Relay 8 | . . . . . . 2 . . 2 . 2 . . . 2 . . . . . . . . . . . . . Phase Generator 1 | . . . . . . . . . . . . . . . 1 . . . . . . . . . . . . . Machines Repaired . | . . . . . . . . . . . . . . . . . . . . . . . . . . . . . Machines Sabotaged . | . . . . . . . . . . . . . . . . . . . . . . . . . . . . . Overloaded Fab Kills . | . . . . . . . . . . . . . . . . . . . . . . . . . . . . . Hacking | -11 -10 -10 -10 -9 -8 -8 -8 -7 -7 -7 -7 -7 -6 -5 -5 -5 -5 -5 -5 -4 -4 -4 -4 -4 -3 -3 -2 -1 --------- Run | Jun Mat Min Exi Min Mat Gar Mat Fac Gar Fac Gar Fac Fac Fac Gar Fac Upp Upp War Pro Fac Upp Upp Zhi Pro Res Res Acc Machines Accessed 112 | . 4 . 1 . 11 1 6 5 . 25 . 2 22 10 2 3 . . . . 9 . . 4 . 3 . 4 Terminals 52 | . 2 . . . 6 1 2 3 . 12 . 1 12 5 2 . . . . . 2 . . . . 3 . 1 Fabricators 6 | . . . . . . . . . . 2 . . 2 1 . . . . . . 1 . . . . . . . Repair Stations 14 | . . . . . 2 . 2 . . 4 . . 3 1 . 1 . . . . 1 . . . . . . . Recycling Units 20 | . 2 . . . 1 . 1 . . 4 . . 4 2 . 1 . . . . 3 . . . . . . 2 Scanalyzers 8 | . . . . . 1 . . 1 . 2 . 1 1 . . 1 . . . . 1 . . . . . . . Garrison Access 7 | . . . . . 1 . 1 1 . 1 . . . 1 . . . . . . 1 . . . . . . 1 Total Hacks 225 | . 10 . 1 . 25 1 16 5 . 51 . 7 45 23 2 9 . . . . 11 . . 8 . 6 . 5 Successful 112 | . 6 . 1 . 14 . 10 1 . 25 . 3 16 14 2 5 . . . . 6 . . 8 . . . 1 Failed 113 | . 4 . . . 11 1 6 4 . 26 . 4 29 9 . 4 . . . . 5 . . . . 6 . 4 Catastrophic 27 | . . . . . 2 1 . . . 6 . 1 8 1 . 1 . . . . 2 . . . . 3 . 2 Database Lockouts . | . . . . . . . . . . . . . . . . . . . . . . . . . . . . . Manual 45 | . 2 . . . 6 . . 2 . 8 . 2 11 11 . . . . . . 1 . . . . 2 . . Terminals 112 | . 8 . . . 16 1 6 3 . 23 . 3 23 16 2 . . . . . 4 . . . . 6 . 1 Fabricators 12 | . . . . . . . . . . 3 . . 6 2 . . . . . . 1 . . . . . . . Repair Stations 33 | . . . . . 6 . 8 . . 8 . . 5 2 . 3 . . . . 1 . . . . . . . Recycling Units 27 | . 2 . . . 1 . 1 . . 6 . . 8 2 . 1 . . . . 3 . . . . . . 3 Scanalyzers 25 | . . . . . 1 . . 1 . 10 . 4 3 . . 5 . . . . 1 . . . . . . . Garrison Access 7 | . . . . . 1 . 1 1 . 1 . . . 1 . . . . . . 1 . . . . . . 1 Terminal Hacks 42 | . 3 . 1 . 5 . 3 . . 8 . 1 6 4 2 . . . . . 1 . . 8 . . . . Record 3 | . . . 1 . . . . . . . . . . . . . . . . . . . . 2 . . . . Part Schematic 2 | . . . . . . . . . . . . . . . . . . . . . . . . 2 . . . . Prototype ID Bank 5 | . . . . . . . . . . . . . . 1 . . . . . . . . . 4 . . . . Branch Access Points 1 | . . . . . . . . . . 1 . . . . . . . . . . . . . . . . . . Emergency Access Points 2 | . . . . . . . . . . . . . 1 . 1 . . . . . . . . . . . . . Terminal Index 1 | . . . . . . . . . . 1 . . . . . . . . . . . . . . . . . . Scanalyzer Index 1 | . . . . . 1 . . . . . . . . . . . . . . . . . . . . . . . Garrison Index 1 | . . . . . . . . . . 1 . . . . . . . . . . . . . . . . . . Unreport Threat 2 | . . . . . 1 . . . . 1 . . . . . . . . . . . . . . . . . . Locate Traps 8 | . 1 . . . . . 1 . . 1 . . 2 2 . . . . . . 1 . . . . . . . Patrol Status 3 | . . . . . 1 . . . . . . . 1 1 . . . . . . . . . . . . . . Hauler Manifests 5 | . 1 . . . 1 . 1 . . 2 . . . . . . . . . . . . . . . . . . Registered Components 3 | . 1 . . . 1 . . . . . . . 1 . . . . . . . . . . . . . . . Zone Layout 4 | . . . . . . . 1 . . 1 . 1 1 . . . . . . . . . . . . . . . Security Stations 1 | . . . . . . . . . . . . . . . 1 . . . . . . . . . . . . . Fabricator Hacks 4 | . . . . . . . . . . 2 . . 1 . . . . . . . 1 . . . . . . . Network Status 4 | . . . . . . . . . . 2 . . 1 . . . . . . . 1 . . . . . . . Repair Station Hacks 23 | . . . . . 5 . 6 . . 5 . . 3 2 . 2 . . . . . . . . . . . . Scan Component 15 | . . . . . 3 . 4 . . 4 . . 2 1 . 1 . . . . . . . . . . . . Repair 8 | . . . . . 2 . 2 . . 1 . . 1 1 . 1 . . . . . . . . . . . . Recycling Unit Hacks 15 | . 2 . . . 1 . . . . 3 . . 4 2 . 1 . . . . 2 . . . . . . . Process 4 | . . . . . . . . . . 1 . . 3 . . . . . . . . . . . . . . . Retrieve Matter 1 | . . . . . . . . . . . . . 1 . . . . . . . . . . . . . . . Retrieve Components 10 | . 2 . . . 1 . . . . 2 . . . 2 . 1 . . . . 2 . . . . . . . Scanalyzer 11 | . . . . . 1 . . . . 6 . 1 . . . 2 . . . . 1 . . . . . . . Insert Component 8 | . . . . . 1 . . . . 3 . 1 . . . 2 . . . . 1 . . . . . . . Analyze 3 | . . . . . . . . . . 3 . . . . . . . . . . . . . . . . . . Garrison Access Hacks 7 | . . . . . 1 . 1 1 . 1 . . . 1 . . . . . . 1 . . . . . . 1 Unlock Access 6 | . . . . . 1 . 1 1 . 1 . . . 1 . . . . . . . . . . . . . 1 Seal Access 1 | . . . . . . . . . . . . . . . . . . . . . 1 . . . . . . . Unauthorized Hacks 10 | . 1 . . . 1 . . . . . . 1 2 5 . . . . . . . . . . . . . . Terminals 10 | . 1 . . . 1 . . . . . . 1 2 5 . . . . . . . . . . . . . . Assimilate 5 | . 1 . . . . . . . . . . . 1 3 . . . . . . . . . . . . . . Botnet 5 | . . . . . 1 . . . . . . 1 1 2 . . . . . . . . . . . . . . Fabricators . | . . . . . . . . . . . . . . . . . . . . . . . . . . . . . Repair Stations . | . . . . . . . . . . . . . . . . . . . . . . . . . . . . . Recycling Units . | . . . . . . . . . . . . . . . . . . . . . . . . . . . . . Scanalyzers . | . . . . . . . . . . . . . . . . . . . . . . . . . . . . . Garrison Access . | . . . . . . . . . . . . . . . . . . . . . . . . . . . . . Data Cores Recovered 2 | . . . . . 2 . . . . . . . . . . . . . . . . . . . . . . . Used 1 | . . . . . 1 . . . . . . . . . . . . . . . . . . . . . . . Hacking Detections 82 | . 2 . . . 6 . 6 4 . 21 . 2 19 6 1 2 . . . . 6 . . . . 3 . 4 Full Trace Events . | . . . . . . . . . . . . . . . . . . . . . . . . . . . . . Feedback Events . | . . . . . . . . . . . . . . . . . . . . . . . . . . . . . Feedback Blocked . | . . . . . . . . . . . . . . . . . . . . . . . . . . . . . Robot Schematics Acquired . | . . . . . . . . . . . . . . . . . . . . . . . . . . . . . Robots Built . | . . . . . . . . . . . . . . . . . . . . . . . . . . . . . Authchips . | . . . . . . . . . . . . . . . . . . . . . . . . . . . . . Time . | . . . . . . . . . . . . . . . . . . . . . . . . . . . . . Total Robot Build Rating . | . . . . . . . . . . . . . . . . . . . . . . . . . . . . . Part Schematics Acquired 5 | . . . . . . . . . . 3 . . . . . . . . . . . . . 2 . . . . Parts Built . | . . . . . . . . . . . . . . . . . . . . . . . . . . . . . Authchips . | . . . . . . . . . . . . . . . . . . . . . . . . . . . . . Time . | . . . . . . . . . . . . . . . . . . . . . . . . . . . . . Total Part Build Rating . | . . . . . . . . . . . . . . . . . . . . . . . . . . . . . Parts Repaired 8 | . . . . . 2 . 2 . . 1 . . 1 1 . 1 . . . . . . . . . . . . Time 315 | . . . . . 64 . 76 . . 16 . . 64 70 . 25 . . . . . . . . . . . . Parts Recycled . | . . . . . . . . . . . . . . . . . . . . . . . . . . . . . Recycled Matter 771 | . . . . . . . . . . 723 . . 48 . . . . . . . . . . . . . . . Retrieved Matter 20 | . . . . . . . . . . . . . 20 . . . . . . . . . . . . . . . Retrieved Components 42 | . 14 . . . 1 . . . . 19 . . . 3 . 3 . . . . 2 . . . . . . . Parts Scanalyzed 5 | . . . . . . . . . . 3 . 1 . . . 1 . . . . . . . . . . . . Part Schematics Acquired 3 | . . . . . . . . . . 3 . . . . . . . . . . . . . . . . . . Parts Damaged . | . . . . . . . . . . . . . . . . . . . . . . . . . . . . . Bothacking | -11 -10 -10 -10 -9 -8 -8 -8 -7 -7 -7 -7 -7 -6 -5 -5 -5 -5 -5 -5 -4 -4 -4 -4 -4 -3 -3 -2 -1 ------------ Run | Jun Mat Min Exi Min Mat Gar Mat Fac Gar Fac Gar Fac Fac Fac Gar Fac Upp Upp War Pro Fac Upp Upp Zhi Pro Res Res Acc Used RIF Installer 3 | . . . . . . 1 . . . . 1 . . . 1 . . . . . . . . . . . . . Signal Jammer 1 | . . . . . . . . . . . 1 . . . . . . . . . . . . . . . . . Watcher Feeds 1 | . . . . . . . . . . . . . . . 1 . . . . . . . . . . . . . Robots Hacked 51 | . . . . . . . 1 6 7 15 . 2 8 2 1 5 . . . . 2 . . . . 2 . . Non-combat 19 | . . . . . . . . 3 . 6 . . 4 2 . 3 . . . . . . . . . 1 . . Combat 32 | . . . . . . . 1 3 7 9 . 2 4 . 1 2 . . . . 2 . . . . 1 . . Robot Hacks Applied 53 | . . . . . . . 1 6 7 16 . 2 9 2 1 5 . . . . 2 . . . . 2 . . drop_inventory 7 | . . . . . . . . 2 . 3 . . 1 . . 1 . . . . . . . . . . . . map_route 13 | . . . . . . . . 1 . 3 . . 4 2 . 2 . . . . . . . . . 1 . . scatter_targeting 2 | . . . . . . . . . . 1 . . . . . 1 . . . . . . . . . . . . wipe_record 1 | . . . . . . . . . . 1 . . . . . . . . . . . . . . . . . . reboot_system 1 | . . . . . . . . . . 1 . . . . . . . . . . . . . . . . . . go_dormant 1 | . . . . . . . . . . 1 . . . . . . . . . . . . . . . . . . overwrite_iff 21 | . . . . . . . 1 2 6 6 . 2 3 . 1 . . . . . . . . . . . . . formatsys_high 7 | . . . . . . . . 1 1 . . . 1 . . 1 . . . . 2 . . . . 1 . . Relay Couplers Released 34 | . . . . . . 9 . . 8 . 6 . 3 . 8 . . . . . . . . . . . . . Machine Destruction 31 | . . . . . . 9 . . 8 . 6 . . . 8 . . . . . . . . . . . . . Programmers 3 | . . . . . . . . . . . . . 3 . . . . . . . . . . . . . . . Attached 20 | . . . . . . . 1 2 3 3 . 1 3 1 1 3 . . . . 2 . . . . . . . Fabnet Peak Effective % . | . . . . . . . . . . . . . . . . . . . . . . . . . . . . . Robots Rewired . | . . . . . . . . . . . . . . . . . . . . . . . . . . . . . Allies Hacked 3 | . . . . . . . . . . 1 . . . . . 2 . . . . . . . . . . . . Hacks Repelled . | . . . . . . . . . . . . . . . . . . . . . . . . . . . . . Allies | -11 -10 -10 -10 -9 -8 -8 -8 -7 -7 -7 -7 -7 -6 -5 -5 -5 -5 -5 -5 -4 -4 -4 -4 -4 -3 -3 -2 -1 -------- Run | Jun Mat Min Exi Min Mat Gar Mat Fac Gar Fac Gar Fac Fac Fac Gar Fac Upp Upp War Pro Fac Upp Upp Zhi Pro Res Res Acc Total Allies 36 | . 1 3 . 2 . . 1 3 7 6 . 2 5 1 1 1 . . . . 2 . . . . 1 . . Largest Group 5 | . 1 4 3 5 3 . 1 2 2 1 . 1 1 1 2 1 1 . . . 2 2 2 2 2 . . . Highest-Rated Group 98 | . 10 50 33 80 33 . 29 61 32 16 . 16 47 26 73 41 41 . . . 98 98 98 98 98 . . . Highest-Rated Ally 49 | . 10 16 16 31 16 . 29 32 32 16 . 16 47 26 47 41 41 . . . 49 49 49 49 49 . . . Total Orders 4 | . . . . . . . . 2 . . . . . . . 2 . . . . . . . . . . . . STAY 2 | . . . . . . . . 1 . . . . . . . 1 . . . . . . . . . . . . FOLLOW 1 | . . . . . . . . 1 . . . . . . . . . . . . . . . . . . . . GUARD 1 | . . . . . . . . . . . . . . . . 1 . . . . . . . . . . . . Ally Attacks 157 | . . 9 . 7 27 . 4 7 21 25 . 6 11 . 3 4 3 . . . . 12 4 . 13 1 . . Total Damage 2662 | . . 105 . 102 243 . 77 144 337 239 . 79 233 . 78 111 147 . . . . 562 41 . 135 29 . . Kills 20 | . . 2 . 3 4 . . 2 2 2 . . . . . . 1 . . . . 1 2 . 1 . . . Allies Corrupted . | . . . . . . . . . . . . . . . . . . . . . . . . . . . . . Allies Melted 1 | . . . . . . . . . . . . . 1 . . . . . . . . . . . . . . . Intel | -11 -10 -10 -10 -9 -8 -8 -8 -7 -7 -7 -7 -7 -6 -5 -5 -5 -5 -5 -5 -4 -4 -4 -4 -4 -3 -3 -2 -1 ------- Run | Jun Mat Min Exi Min Mat Gar Mat Fac Gar Fac Gar Fac Fac Fac Gar Fac Upp Upp War Pro Fac Upp Upp Zhi Pro Res Res Acc Robot Analysis Total . | . . . . . . . . . . . . . . . . . . . . . . . . . . . . . Derelict Logs Recovered 11 | . . 1 . 2 . . . . . . . . . . . . 2 2 . 1 . 1 2 . . . . . Drone Launches . | . . . . . . . . . . . . . . . . . . . . . . . . . . . . . Drone Recoveries . | . . . . . . . . . . . . . . . . . . . . . . . . . . . . . Exploration | -11 -10 -10 -10 -9 -8 -8 -8 -7 -7 -7 -7 -7 -6 -5 -5 -5 -5 -5 -5 -4 -4 -4 -4 -4 -3 -3 -2 -1 ------------- Run | Jun Mat Min Exi Min Mat Gar Mat Fac Gar Fac Gar Fac Fac Fac Gar Fac Upp Upp War Pro Fac Upp Upp Zhi Pro Res Res Acc Turns Passed 27328 | 57 1174 259 248 354 1627 1119 1086 540 865 4230 704 663 4315 1522 1127 972 373 635 70 606 900 743 707 200 686 834 269 443 Spaces Moved 17964 | 41 784 227 177 246 861 561 518 323 469 2590 429 432 2807 1091 574 649 320 439 66 418 711 565 558 149 500 413 342 704 Core 18 | 7 . . . . . . . . . . . . . . . . . . . . . . . . . 11 . . Treads 313 | . . 1 . . . . . . 269 40 . . . . . . . . . . . . . . . 3 . . Legs 667 | 34 633 . . . . . . . . . . . . . . . . . . . . . . . . . . . Wheels 15912 | . 151 226 177 246 861 561 518 323 200 2550 429 432 2807 1091 574 649 320 439 66 418 711 565 558 149 500 391 . . Hover . | . . . . . . . . . . . . . . . . . . . . . . . . . . . . . Flight 1054 | . . . . . . . . . . . . . . . . . . . . . . . . . . 8 342 704 Fastest Speed 34 | 50 95 95 95 140 125 125 113 113 125 101 120 120 101 95 95 105 105 105 105 105 104 118 119 119 119 50 57 34 Average Speed 113 | 108 115 100 137 140 125 132 129 129 145 125 120 120 108 99 123 105 105 105 105 105 111 118 119 119 119 118 61 54 Slowest Speed 605 | 120 120 240 140 140 140 145 145 215 160 480 145 120 140 155 230 105 105 120 105 120 122 153 119 119 153 270 142 605 Overloaded Moves . | . . . . . . . . . . . . . . . . . . . . . . . . . . . . . Propulsion Burnouts . | . . . . . . . . . . . . . . . . . . . . . . . . . . . . . Robots Hopped 13 | . . . . . . . . . . . . . . . . . . . . . . . . . . . 2 11 Cave-ins Triggered . | . . . . . . . . . . . . . . . . . . . . . . . . . . . . . Exploration Rate (%) 48 | 4 97 60 53 74 78 62 38 12 44 80 39 16 72 34 66 19 65 74 15 71 20 72 65 63 69 17 12 23 Regions Visited 28 Branch Regions 11 Pre-discovered Areas 5 | . . . 1 . . . . . . . . . . . . . . 1 . . . 1 2 . . . . . Known Exits Taken 19 | . . . . . 1 . 1 1 . 1 . 1 1 1 . 1 1 1 1 1 1 1 1 1 1 1 1 . Unknown Exits Taken 5 | 1 1 1 1 1 . . . . . . . . . . . . . . . . . . . . . . . . Scrap Searched 17 | . . 1 . 2 . . . . . . . . . . . . 3 1 . 1 . 1 5 . 3 . . . Spaces Dug 331 | . . . . . 37 . 18 17 5 58 13 18 76 19 . 14 . . . . 22 2 . . . 16 5 11 Terrain Destroyed 988 | . . . . . 51 108 31 53 18 229 51 23 133 22 55 15 12 7 . 19 23 2 5 . 16 97 6 12 Melee 189 | . . . . . 1 . . . . 46 . 18 57 19 . 13 . . . . 20 1 . . . 14 . . Projectile 123 | . . . . . . . . . . 6 4 5 20 3 . 2 8 7 . 19 3 1 5 . 16 6 6 12 AOE 676 | . . . . . 50 108 31 53 18 177 47 . 56 . 55 . 4 . . . . . . . . 77 . . Terrain Rammed . | . . . . . . . . . . . . . . . . . . . . . . . . . . . . . Walls Destroyed . | . . . . . . . . . . . . . . . . . . . . . . . . . . . . . Machines Disabled . | . . . . . . . . . . . . . . . . . . . . . . . . . . . . . Actions | -11 -10 -10 -10 -9 -8 -8 -8 -7 -7 -7 -7 -7 -6 -5 -5 -5 -5 -5 -5 -4 -4 -4 -4 -4 -3 -3 -2 -1 --------- Run | Jun Mat Min Exi Min Mat Gar Mat Fac Gar Fac Gar Fac Fac Fac Gar Fac Upp Upp War Pro Fac Upp Upp Zhi Pro Res Res Acc Total 22618 | 50 952 247 182 253 1296 820 782 396 597 3185 546 508 3687 1394 820 859 343 590 66 560 790 621 584 174 545 646 392 733 Wait 1899 | . 61 14 . . 304 119 119 4 41 92 16 13 421 133 62 79 8 130 . 114 18 26 6 15 4 62 38 . Move 17915 | 40 783 226 176 245 861 560 517 323 468 2590 428 431 2807 1091 573 648 319 438 65 417 710 564 557 148 499 412 337 682 Hop 12 | . . . . . . . . . . . . . . . . . . . . . . . . . . . 2 10 Pick Up 251 | 3 14 . 5 4 17 8 15 6 8 48 6 5 25 20 12 15 2 2 . 1 9 2 6 2 3 6 3 4 Fast Attach 122 | 6 6 . . 1 8 . 11 4 4 11 . . 19 17 7 3 . . . . 3 3 . 1 2 10 3 3 Attach 184 | . . . . . 7 8 8 6 8 26 4 1 27 8 21 5 . 3 . 4 4 6 1 2 6 20 3 6 Detach 99 | . 3 . . 1 3 2 5 2 5 9 1 . 13 9 13 6 . . . . 2 3 . 2 4 11 . 5 Swap 548 | 1 11 2 1 1 16 14 21 20 15 136 11 16 139 25 11 30 5 8 1 7 7 5 7 . 5 32 . 1 Drop 216 | . 12 . . . 22 5 15 2 8 42 2 5 27 18 9 15 2 . . . 4 3 . 4 3 15 . 3 Fire 778 | . 62 5 . 1 56 49 57 22 18 132 31 16 86 18 59 30 7 9 . 17 10 8 6 . 19 35 6 19 Melee 442 | . . . . . 2 1 14 7 22 75 1 21 123 55 25 28 . . . . 23 1 1 . . 43 . . Ram . | . . . . . . . . . . . . . . . . . . . . . . . . . . . . . Kick . | . . . . . . . . . . . . . . . . . . . . . . . . . . . . . Crush . | . . . . . . . . . . . . . . . . . . . . . . . . . . . . . Escape Stasis 152 | . . . . . . 54 . . . 24 46 . . . 28 . . . . . . . . . . . . . Rewire . | . . . . . . . . . . . . . . . . . . . . . . . . . . . . . Trap . | . . . . . . . . . . . . . . . . . . . . . . . . . . . . . Miscellaneous . | . . . . . . . . . . . . . . . . . . . . . . . . . . . . . Route ------- -11/Junkyard -10/Materials (discovered 5 exits: [*Mat x3] / [*Min x2]) -10/Mines (discovered 3 exits: [*Mat x2] / *Exi) -10/Exiles -9/Mines -8/Materials (discovered 4 exits: *Fac x3 / Gar) -8/Garrison (discovered 3 exits: *Mat x3) -8/Materials (discovered 3 exits: *Fac x2 / Gar) -7/Factory (discovered 3 exits: *Sto x2 / Gar) -7/Garrison -7/Factory (discovered 6 exits: *Fac x2 / *Sto / *Low x2 / Gar) -7/Garrison -7/Factory (discovered 2 exits: *Fac / *Sto) -6/Factory (discovered 4 exits: *Fac x2 / *Low x2) -5/Factory (discovered 3 exits: *Fac x2 / Gar) -5/Garrison -5/Factory -5/Upper Caves -5/Upper Caves -5/Warlord -4/Proximity Caves -4/Factory (discovered 2 exits: *Upp x2) -4/Upper Caves -4/Upper Caves -4/Zhirov -3/Proximity Caves -3/Research -2/Research -1/Access (discovered 2 exits: [*Sur] / Gar) To Epsilon Eridani History --------- Turn | Location | Event 6 | -11/Junkyard | Discovered new exit (range 14) 58 | -11/Junkyard | Entered Materials 211 | -10/Materials | Discovered new exit (range 12) 323 | -10/Materials | Build established: Mutant 439 | -10/Materials | Discovered new exit (range 8) 538 | -10/Materials | Discovered new exit (range 9) 789 | -10/Materials | Discovered new exit (range 4) 1067 | -10/Materials | Discovered new exit (range 9) 1232 | -10/Materials | Entered Mines 1232 | -10/Mines | Accompanied by 1 ally 1236 | -10/Mines | Assisted by bots powering up and referring to "LRC-V3" 1300 | -10/Mines | Discovered new exit (range 12) 1467 | -10/Mines | Discovered new exit (range 8) 1479 | -10/Mines | Deemed a non-threat by the Exiles lab entrance 1479 | -10/Mines | Discovered new exit (range 5) 1491 | -10/Mines | Entered Exiles 1491 | -10/Exiles | Accompanied by 3 allies 1526 | -10/Exiles | Met 8R-AWN 1548 | -10/Exiles | Met EX-HEX 1649 | -10/Exiles | Met EX-DEC 1655 | -10/Exiles | Learned location of Zion (-6) 1724 | -10/Exiles | Discovered new exit (range 11) 1739 | -10/Exiles | Entered Mines 1739 | -9/Mines | Accompanied by 3 allies 1745 | -9/Mines | Learned location of 1 exit from Materials 1749 | -9/Mines | Learned 8 Materials zone layouts 1767 | -9/Mines | A weapon hastily lodged in a ceiling crevice suddenly fell to the ground 2073 | -9/Mines | Discovered new exit (range 11) 2093 | -9/Mines | Entered Materials 2093 | -8/Materials | Accompanied by 3 allies 2093 | -8/Materials | Evolved 4 slots: Propulsion x2, Utility x1, Weapon x1 2094 | -8/Materials | Identified exit to Factory 2489 | -8/Materials | Build established: Scavenger-Gunner 3083 | -8/Materials | Repaired Wheel 3134 | -8/Materials | Repaired Lgt. Nuclear Core 3483 | -8/Materials | Discovered exit to Factory (range 10) 3530 | -8/Materials | Build established: Gunner 3720 | -8/Materials | Identified exit to Garrison 3720 | -8/Materials | Entered Garrison 3744 | -8/Garrison | Triggered checkpoint 3807 | -8/Garrison | Garrison Relay disabled 4021 | -8/Garrison | Triggered checkpoint 4090 | -8/Garrison | Triggered checkpoint 4139 | -8/Garrison | Destroyed 8 combat bots 4167 | -8/Garrison | Discovered new exit (range 11) 4207 | -8/Garrison | Core integrity fell below 50% 4222 | -8/Garrison | Triggered checkpoint 4269 | -8/Garrison | Garrison Relay disabled 4318 | -8/Garrison | Lost 4 parts (2n2w) 4386 | -8/Garrison | Triggered checkpoint 4495 | -8/Garrison | Triggered checkpoint 4534 | -8/Garrison | Discovered new exit (range 15) 4563 | -8/Garrison | Build established: Scavenger-Gunner 4815 | -8/Garrison | Installed Relay Interface Framework 4825 | -8/Garrison | Discovered new exit (range 9) 4839 | -8/Garrison | Entered Materials 4997 | -8/Materials | Identified exit to Garrison 5115 | -8/Materials | Build established: Bothacker-Mutant 5137 | -8/Materials | Discovered exit to Factory (range 5) 5211 | -8/Materials | Core integrity fell below 20% 5239 | -8/Materials | First assault squad dispatched 5531 | -8/Materials | Build established: Bothacker-Gunner 5645 | -8/Materials | Repaired Broken Arm. Wheel 5678 | -8/Materials | Repaired Hvy. Assault Rifle 5801 | -8/Materials | Lost 4 parts (1n3w) 5899 | -8/Materials | Discovered exit to Factory (range 16) 5925 | -8/Materials | Entered Factory 5925 | -7/Factory | Evolved 2 slots: Utility x2 5926 | -7/Factory | Identified exit to Storage 6052 | -7/Factory | Discovered exit to Storage (range 5) 6068 | -7/Factory | Build established: Bothacker-Mutant 6231 | -7/Factory | Lost 4 parts (1p1n2w) 6325 | -7/Factory | First assault squad dispatched 6465 | -7/Factory | Identified exit to Garrison 6465 | -7/Factory | Entered Garrison 6483 | -7/Garrison | Triggered checkpoint 6515 | -7/Garrison | Garrison Relay disabled 6616 | -7/Garrison | Triggered checkpoint 7036 | -7/Garrison | Triggered checkpoint 7078 | -7/Garrison | Garrison Relay disabled 7168 | -7/Garrison | Heavy support dispatched to Factory 7301 | -7/Garrison | Discovered new exit (range 15) 7308 | -7/Garrison | Triggered checkpoint 7330 | -7/Garrison | Entered Factory 7346 | -7/Factory | Lost 3 parts (1p2w) 7516 | -7/Factory | Discovered new exit (range 14) 8027 | -7/Factory | Discovered new exit (range 16) 8787 | -7/Factory | Discovered new exit (range 15) 8938 | -7/Factory | Discovered exit to Storage (range 14) 9378 | -7/Factory | Identified exit to Lower Caves 9596 | -7/Factory | Repaired Arm. Wheel 9989 | -7/Factory | Discovered new exit (range 11) 10130 | -7/Factory | First assault squad dispatched 10260 | -7/Factory | Core integrity fell below 50% 10332 | -7/Factory | Destroyed 7 combat bots 10341 | -7/Factory | Lost 7 parts (1p2n2u2w) 10516 | -7/Factory | Build established: Scavenger-Mutant 11387 | -7/Factory | Core integrity fell below 20% 11560 | -7/Factory | Identified exit to Garrison 11560 | -7/Factory | Entered Garrison 11631 | -7/Garrison | Triggered checkpoint 11712 | -7/Garrison | Triggered checkpoint 11781 | -7/Garrison | Garrison Relay disabled 11961 | -7/Garrison | Discovered new exit (range 15) 12062 | -7/Garrison | Expanded RIF knowledge: Signal Jamming 12187 | -7/Garrison | Triggered checkpoint 12220 | -7/Garrison | Garrison Relay disabled 12264 | -7/Garrison | Entered Factory 12578 | -7/Factory | Discovered exit to Storage (range 5) 12664 | -7/Factory | First assault squad dispatched 12789 | -7/Factory | Build established: Bothacker-Mutant 12819 | -7/Factory | Discovered new exit (range 14) 12925 | -7/Factory | Identified exit to Factory 12927 | -7/Factory | Entered another Factory area 12927 | -6/Factory | Evolved 2 slots: Propulsion x1, Utility x1 13171 | -6/Factory | Repaired Broken Imp. Assault Rifle 13266 | -6/Factory | Discovered new exit (range 10) 13291 | -6/Factory | Discovered new exit (range 5) 13294 | -6/Factory | Identified exit to Factory 13496 | -6/Factory | Identified exit to Lower Caves 14239 | -6/Factory | Destroyed 7 combat bots 14458 | -6/Factory | Build established: Bothacker-Assassin 14498 | -6/Factory | Discovered exit to Factory (range 5) 14906 | -6/Factory | Cargo convoy interrupted 15053 | -6/Factory | Discovered exit to Lower Caves (range 52) 16427 | -6/Factory | First assault squad dispatched 16618 | -6/Factory | System corruption reached 10% 16673 | -6/Factory | Lost 8 parts (1p3n4u) 16896 | -6/Factory | Lost 3 parts (1p1u1w) 17197 | -6/Factory | Core integrity fell below 50% 17242 | -6/Factory | Entered another Factory area 17242 | -5/Factory | Evolved 2 slots: Propulsion x1, Utility x1 17266 | -5/Factory | Lost 4 parts (3n1w) 17486 | -5/Factory | Repaired Broken Imp. Medium Treads 17773 | -5/Factory | Discovered new exit (range 13) 17784 | -5/Factory | Identified exit to Factory 18012 | -5/Factory | Build established: Scavenger-Assassin 18370 | -5/Factory | Lost 5 parts (4n1u) 18452 | -5/Factory | Discovered exit to Factory (range 3) 18764 | -5/Factory | Identified exit to Garrison 18764 | -5/Factory | Entered Garrison 18764 | -5/Garrison | Accompanied by 1 ally 18781 | -5/Garrison | Phase Generator disabled 18796 | -5/Garrison | Garrison Relay disabled 18812 | -5/Garrison | Lost 3 parts (1n1u1w) 18857 | -5/Garrison | Learned Factory security intel 18922 | -5/Garrison | Triggered checkpoint 18933 | -5/Garrison | Lost 4 parts (3n1u) 19007 | -5/Garrison | Spotted B-75 Beast 19031 | -5/Garrison | Triggered checkpoint 19187 | -5/Garrison | Build established: Bothacker-Tank 19216 | -5/Garrison | Destroyed B-75 Beast 19384 | -5/Garrison | Triggered checkpoint 19532 | -5/Garrison | Triggered checkpoint 19587 | -5/Garrison | Lost 4 parts (1n1u2w) 19707 | -5/Garrison | Expanded RIF knowledge: Watcher Feeds 19733 | -5/Garrison | Garrison Relay disabled 19881 | -5/Garrison | Discovered new exit (range 11) 19890 | -5/Garrison | Identified exit to Factory 19891 | -5/Garrison | Entered Factory 20140 | -5/Factory | Repaired Adv. Heat Sink 20188 | -5/Factory | Build established: Bothacker-Assassin 20253 | -5/Factory | Discovered new exit (range 22) 20268 | -5/Factory | Identified exit to Upper Caves 20657 | -5/Factory | Core integrity fell below 50% 20863 | -5/Factory | Entered Upper Caves 20863 | -5/Upper Caves | Accompanied by 1 ally 20936 | -5/Upper Caves | Build established: Bothacker-Mutant 21158 | -5/Upper Caves | Discovered new exit (range 8) 21165 | -5/Upper Caves | Identified exit to Upper Caves 21204 | -5/Upper Caves | Learned Factory emergency access door positions 21236 | -5/Upper Caves | Entered another Upper Caves area 21237 | -5/Upper Caves | Identified exit to Warlord 21277 | -5/Upper Caves | Encountered a Warlord checkpoint 21323 | -5/Upper Caves | Learned location of Armory (-3) 21352 | -5/Upper Caves | Build established: Bothacker-Skirmisher 21406 | -5/Upper Caves | Learned Factory terminal intel 21604 | -5/Upper Caves | Lost 3 parts (1n2u) 21871 | -5/Upper Caves | Entered Warlord 21906 | -5/Warlord | System corruption cleaned by Quarantine Array 21929 | -5/Warlord | Discovered new exit (range 12) 21939 | -5/Warlord | Identified exit to Proximity Caves 21941 | -5/Warlord | Entered Proximity Caves 21981 | -4/Proximity Caves | Build established: Scavenger-Skirmisher 22203 | -4/Proximity Caves | Lost 4 parts (1p1n1u1w) 22205 | -4/Proximity Caves | Destroyed 9 combat bots 22410 | -4/Proximity Caves | Learned Research emergency access door positions 22500 | -4/Proximity Caves | Build established: Scavenger-Assassin 22520 | -4/Proximity Caves | Discovered exit to Factory (range 21) 22547 | -4/Proximity Caves | Entered Factory 22547 | -4/Factory | Evolved 2 slots: Power x1, Utility x1 22549 | -4/Factory | Loaded intel: 28 terminal locations 22846 | -4/Factory | Found Prototype Slashing Weapon 22925 | -4/Factory | Identified Nanosword 23173 | -4/Factory | Discovered new exit (range 31) 23437 | -4/Factory | Discovered new exit (range 7) 23444 | -4/Factory | Identified exit to Upper Caves 23447 | -4/Factory | Entered Upper Caves 23447 | -4/Upper Caves | Accompanied by 2 allies 23564 | -4/Upper Caves | Build established: Assassin 23866 | -4/Upper Caves | Spotted B-86 Titan 23889 | -4/Upper Caves | Allies destroyed B-86 Titan 23911 | -4/Upper Caves | Lost 5 parts (3n1u1w) 24099 | -4/Upper Caves | Discovered new exit (range 8) 24105 | -4/Upper Caves | Identified exit to Upper Caves 24190 | -4/Upper Caves | Entered another Upper Caves area 24190 | -4/Upper Caves | Accompanied by 2 allies 24211 | -4/Upper Caves | Learned location of Testing (-2) 24499 | -4/Upper Caves | Encountered a Warlord checkpoint 24840 | -4/Upper Caves | Discovered new exit (range 15) 24859 | -4/Upper Caves | Identified exit to Zhirov 24897 | -4/Upper Caves | Entered Zhirov 24897 | -4/Zhirov | Accompanied by 2 allies 24897 | -4/Zhirov | Discovered new exit (range 3) 24900 | -4/Zhirov | Identified exit to Proximity Caves 24920 | -4/Zhirov | Met Zhirov 24969 | -4/Zhirov | Zhirov requested help retrieving the SGEMP Prototype 25097 | -4/Zhirov | Entered Proximity Caves 25097 | -3/Proximity Caves | Accompanied by 2 allies 25104 | -3/Proximity Caves | Spotter reported a threat 25107 | -3/Proximity Caves | Spotter reported a threat 25174 | -3/Proximity Caves | Spotter reported a threat 25227 | -3/Proximity Caves | Spotter reported a threat 25393 | -3/Proximity Caves | Build established: Skirmisher 25704 | -3/Proximity Caves | Lost 4 parts (2p2n) 25766 | -3/Proximity Caves | Discovered new exit (range 12) 25778 | -3/Proximity Caves | Identified exit to Research 25783 | -3/Proximity Caves | Entered Research 25783 | -3/Research | Evolved 2 slots: Utility x2 26033 | -3/Research | Search patrols dispatched 26316 | -3/Research | Search patrols dispatched 26374 | -3/Research | Lost 4 parts (1p2n1u) 26417 | -3/Research | Discovered new exit (range 29) 26503 | -3/Research | P-80 Master assimilated allied Warden 8a 26504 | -3/Research | Cargo convoy interrupted 26504 | -3/Research | Spotted Executioner 26514 | -3/Research | System corruption reached 10% 26534 | -3/Research | Destroyed Executioner 26549 | -3/Research | Core integrity fell below 50% 26573 | -3/Research | Destroyed 16 combat bots 26616 | -3/Research | Identified exit to Research 26617 | -3/Research | Entered another Research area 26617 | -2/Research | Evolved 2 slots: Utility x2 26637 | -2/Research | Lost 21 parts (2p5n6u8w) 26778 | -2/Research | Spotted B-90 Cyclops 26831 | -2/Research | Discovered new exit (range 6) 26841 | -2/Research | Identified exit to Access 26886 | -2/Research | Entered Access 26886 | -1/Access | Evolved 2 slots: Propulsion x1, Utility x1 27162 | -1/Access | Build established: Hacker-Scout 27234 | -1/Access | Spotted B-99 Colossus 27299 | -1/Access | Lost 3 parts (1n1u1w) 27299 | -1/Access | Identified exit to Garrison 27304 | -1/Access | Spotted B-99 Colossus 27323 | -1/Access | Discovered new exit (range 6) 27329 | *** | Escaped! Last Messages --------------- 27308_ Slug penetrates Sealed Heavy Doors. 27308_ Penetrated by Slug. 27308_ Slug penetrates Sealed Heavy Doors. 27308_ Penetrated by Slug. 27308_ Slug penetrates Sealed Heavy Doors. 27312_ Penetrated by Slug. 27312_ Field Propulsion Array destroyed. 27312_ Penetrated by Slug. 27312_ Slug penetrates Sealed Heavy Doors. 27312_ Penetrated by Slug. 27312_ Slug penetrates Sealed Heavy Doors. 27312_ Field Propulsion Drive destroyed. 27315_ Slug penetrates Sealed Heavy Doors. 27323_ Main Access Shell breached. 27323_ EXIT=FOUND 27323_ Lgt. Quantum Reactor destroyed. 27324_ Enh. Quantum Rifle destroyed. 27325_ Dropped Enh. Nova Cannon. 27326_ P-80 Master Mic. Antimatter Reactor blasted off. 27326_ Slug penetrates Sealed Heavy Doors. Map ----- +----------------------------------------------------+ | ########## # # #??????????????????? | | #????????# # # #??????????????????? | | #????????# # " # #???##############?? | | #???###### # "" # #???# #?? | | #???# # # >G # ##### #?? | | ####### # # "" # / "" #?? | | # # # " / ######## """ #?? | | # # # # #??????# S" #?? | | # + # !# #??????# """ #?? | | # # #"####"%"" ####???# """ #?? | | # # "##??## #???# #?? | | # # ##????# #???# ! #?? | | ####### # #?????# #???# #?? | | ########### #?????# #???# #?? | | #???# #?????# #???# #?? | | ##### #???# ##????# #???#######+######## | | ###### ##### "#????# % #????????# | | ## ##????#"""""*""""#????????# ######## | | [ ## #######?????????"pp"????????????# #??????? | | ## #???????????????""p"????????????# ######## | | ## #???????????#"""""p""""#????????# # | | ## #???????????# #????????# # | | ## #???????????# """ "" #????????# # | | ###### #??????????????" "? #????????# # ! " | | #????# #??????????????" "" "??#????????# # " | | #????# #??????????????" "@ "???????????# # """ | | #????# #??????????????" "???????????+ + """ | | #????# ###########????""""""???????????# # " | | #????# ## #?????????????????????# # " | | #????# ## #?????????????????????# # | | #????# ##"" #?""""""""""""????????# # | | #????# ##"" #?#"" #????????# " | | #????# ##"Y #?#"" #????????# ######## | | #????# ##"" #?#"" #????????# #??????? | | #????# ##"" #?#T #????????# #??????? | | #????#%## #?#"" #????????# #??????? | | #????# ## #?#"" #???????## ##?????? | | ###### #######+#####"" ######### #?????? | | #?????? | | #?????? | | # ##################################### #?????? | | # #???????????????????????????????????##+###?????? | | # #??????????????????????????????????????????????? | | # #??????????????????????????????????????????????? | | # #??????????????????????????????????????????????? | | # #??????????????????????????????????????????????? | | # #??????????????????????????????????????????????? | | # #??????????????????????????????????????????????? | | # #??????????????????????????????????????????????? | | # ??????????????????????????????????????????????? | +----------------------------------------------------+ Best States ------------- Heat Dissipation 78 Coolant Potential 100 Energy Generation 35 Energy Capacity 385 Matter Stores 300 Matter Capacity 300 Sight Range 22 Robot Scan Range 16 Terrain Scan Range 20 Terrain Scan Density 10 Jamming Range 16 Power Amplification 30 Additional Mass Support 6 Armor Coverage 225 Resistance: KI 30 Core Shielding 30 Power Shielding 66 Propulsion Shielding 66 Weapon Shielding 66 Evasion (%) 63 Targeting Accuracy 8 Recoil Reduction 4 Matter Filtering 30 Offensive Hacking 12 Defensive Hacking 14 Relay Coupler Types 3 Relay Coupler Value 57 Item Schematics ----------------- Arm. Wheel | -7/Factory | Scanalyzed Adv. Targeting Computer | -7/Factory | Scanalyzed Plasma Cannon | -7/Factory | Scanalyzed Exp. Heat Sink | -4/Zhirov | Free Exp. Optical Array | -4/Zhirov | Free Robot Schematics ------------------ None Fabricated ------------ Nothing Alien Tech Used ----------------- None Achievements -------------- None Challenges ------------ None Game ------ Seed BlastWeightNanoactuators Manual? 0 Play Time 09:43:54 Cumulative 765.4 hours Start 2023.04.06 @ 21:22:57 End 2023.04.12 @ 20:28:19 Sessions 11 Manual Loads 0 Difficulty Rogue Special Mode None Game No. 220 Rogue 184 Adventurer 36 Explorer 0 Win Type 0 Total 16 Types 16/0/0/0/0/0/0/0/0 Lore% 56 Gallery% 63 Achievement% 50 Wizard Run 0 Options --------- ASCII 0 Keyboard 1 Movement Vi Keybinds 0 Fullscreen 1 Font 18/Terminus Map View 76x50 Tactical HUD 1 Map Filters NONE Filters NONE Steam 0 RUN: 0bd10c5c-3549-49bf-b1be-0aa7b188463d